[Event "*** Titled Tuesday Blitz"]
[Site "Chess.com"]
[Date "2020.11.10"]
[Round "6"]
[White "amiralfio"]
[Black "ljuks68"]
[Result "0-1"]
[WhiteElo "2512"]
[BlackElo "2373"]
[TimeControl "180+1"]
[EndTime "11:09:45 PST"]
[Termination "ljuks68 won on time"]

1. Nf3 {[%clk 0:03:00.9]} 1... d5 {[%clk 0:02:59.3]} 2. c4 {[%clk 0:02:53.6]}
2... c6 {[%clk 0:02:57.7]} 3. g3 {[%clk 0:02:43.7]} 3... Nf6 {[%clk 0:02:56.8]}
4. Bg2 {[%clk 0:02:44.2]} 4... Bf5 {[%clk 0:02:56.5]} 5. O-O {[%clk 0:02:44.2]}
5... e6 {[%clk 0:02:56.6]} 6. b3 {[%clk 0:02:38.9]} 6... Bd6 {[%clk 0:02:54.4]}
7. Bb2 {[%clk 0:02:35.9]} 7... Nbd7 {[%clk 0:02:54.7]} 8. Nc3 {[%clk 0:02:30.9]}
8... O-O {[%clk 0:02:53.5]} 9. Nh4 {[%clk 0:02:28.6]} 9... Bg4 {[%clk
0:02:52.8]} 10. h3 {[%clk 0:02:28.3]} 10... Bh5 {[%clk 0:02:52.4]} 11. d3 {[%clk
0:02:23.6]} 11... Rc8 {[%clk 0:02:49.9]} 12. Rc1 {[%clk 0:02:22.8]} 12... a6
{[%clk 0:02:49.2]} 13. Qd2 {[%clk 0:02:19.8]} 13... b5 {[%clk 0:02:45.9]} 14. f4
{[%clk 0:02:17.1]} 14... bxc4 {[%clk 0:02:27.8]} 15. dxc4 {[%clk 0:02:11.2]}
15... d4 {[%clk 0:02:14.7]} 16. Ne4 {[%clk 0:01:55.2]} 16... Nxe4 {[%clk
0:02:13.9]} 17. Bxe4 {[%clk 0:01:56.1]} 17... f5 {[%clk 0:02:13.9]} 18. Bg2
{[%clk 0:01:53.3]} 18... c5 {[%clk 0:02:10.2]} 19. e3 {[%clk 0:01:44.8]} 19...
e5 {[%clk 0:02:05.7]} 20. fxe5 {[%clk 0:01:39.7]} 20... Bxe5 {[%clk 0:02:05.6]}
21. Nxf5 {[%clk 0:01:35]} 21... dxe3 {[%clk 0:01:41.5]} 22. Qd5+ {[%clk
0:01:26.5]} 22... Bf7 {[%clk 0:01:40.4]} 23. Bxe5 {[%clk 0:01:18.4]} 23... Bxd5
{[%clk 0:01:30.2]} 24. Bxd5+ {[%clk 0:01:19.3]} 24... Rf7 {[%clk 0:01:29.3]} 25.
Nh6+ {[%clk 0:00:27]} 25... gxh6 {[%clk 0:01:22.9]} 26. Bxf7+ {[%clk 0:00:24.7]}
26... Kf8 {[%clk 0:01:22.2]} 27. Bd5+ {[%clk 0:00:21.4]} 27... Ke8 {[%clk
0:01:14]} 28. Bd6 {[%clk 0:00:14.7]} 28... Qg5 {[%clk 0:01:05.7]} 29. Rf7 {[%clk
0:00:08.6]} 29... Ne5 {[%clk 0:00:36.8]} 30. Bxe5 {[%clk 0:00:03.1]} 30... Qxe5
{[%clk 0:00:34.8]} 31. Kg2 {[%clk 0:00:03.4]} 31... Rd8 {[%clk 0:00:26.8]} 32.
Re1 {[%clk 0:00:03.4]} 32... Rxd5 {[%clk 0:00:25.1]} 33. cxd5 {[%clk 0:00:02.1]}
33... Kxf7 {[%clk 0:00:16.5]} 0-1

[Event "*** Titled Tuesday Blitz"]
[Site "Chess.com"]
[Date "2020.11.10"]
[Round "6"]
[White "Mazetovic"]
[Black "SamuelGhimpu2003"]
[Result "1-0"]
[WhiteElo "2756"]
[BlackElo "2560"]
[TimeControl "180+1"]
[EndTime "11:09:46 PST"]
[Termination "Mazetovic won on time"]

1. e4 {[%clk 0:03:00.9]} 1... e6 {[%clk 0:03:00.3]} 2. d4 {[%clk 0:02:59.9]}
2... d5 {[%clk 0:03:01.2]} 3. Nc3 {[%clk 0:02:59.6]} 3... Nf6 {[%clk 0:03:01.2]}
4. Bg5 {[%clk 0:02:57.1]} 4... dxe4 {[%clk 0:03:01.6]} 5. Nxe4 {[%clk
0:02:56.8]} 5... Nbd7 {[%clk 0:03:02.2]} 6. Nf3 {[%clk 0:02:55.8]} 6... h6
{[%clk 0:03:01.6]} 7. Nxf6+ {[%clk 0:02:55.5]} 7... Nxf6 {[%clk 0:03:02.5]} 8.
Be3 {[%clk 0:02:54.1]} 8... Bd6 {[%clk 0:03:02.5]} 9. Bd3 {[%clk 0:02:52.4]}
9... b6 {[%clk 0:03:02.5]} 10. Qe2 {[%clk 0:02:43.4]} 10... O-O {[%clk
0:02:55.8]} 11. O-O-O {[%clk 0:02:42.6]} 11... Bb7 {[%clk 0:02:53.9]} 12. Rhg1
{[%clk 0:02:39]} 12... Nd5 {[%clk 0:02:52.4]} 13. c3 {[%clk 0:02:30.5]} 13... c5
{[%clk 0:02:43.3]} 14. dxc5 {[%clk 0:02:29.5]} 14... bxc5 {[%clk 0:02:44.2]} 15.
Bc2 {[%clk 0:02:25.3]} 15... Rb8 {[%clk 0:02:26.9]} 16. Qd3 {[%clk 0:02:09.7]}
16... f5 {[%clk 0:02:05.3]} 17. c4 {[%clk 0:02:06.3]} 17... Nxe3 {[%clk
0:02:05.5]} 18. Qxe3 {[%clk 0:02:05.1]} 18... Re8 {[%clk 0:01:40.1]} 19. Ne5
{[%clk 0:02:03.7]} 19... Qc7 {[%clk 0:00:56.7]} 20. f4 {[%clk 0:01:59.1]} 20...
a5 {[%clk 0:00:47.4]} 21. g4 {[%clk 0:01:58.6]} 21... Bxe5 {[%clk 0:00:37.6]}
22. fxe5 {[%clk 0:01:57.9]} 22... f4 {[%clk 0:00:37.7]} 23. Qxf4 {[%clk
0:01:55.6]} 23... Rf8 {[%clk 0:00:38.3]} 24. Qe3 {[%clk 0:01:52.8]} 24... Rf3
{[%clk 0:00:35.8]} 25. Qe2 {[%clk 0:01:49.8]} 25... Rf4 {[%clk 0:00:36]} 26. Rd6
{[%clk 0:01:33.3]} 26... Rbf8 {[%clk 0:00:30.5]} 27. g5 {[%clk 0:01:27]} 27...
Bf3 {[%clk 0:00:30.6]} 28. Qd2 {[%clk 0:01:19.1]} 28... h5 {[%clk 0:00:29.8]}
29. b3 {[%clk 0:01:09.3]} 29... a4 {[%clk 0:00:28]} 30. Kb2 {[%clk 0:01:07.6]}
30... Bg4 {[%clk 0:00:11]} 31. Rg2 {[%clk 0:00:59.5]} 31... Qa7 {[%clk
0:00:05.3]} 32. bxa4 {[%clk 0:00:56]} 32... Qb7+ {[%clk 0:00:04.8]} 33. Bb3
{[%clk 0:00:54.9]} 33... Rf1 {[%clk 0:00:02.4]} 34. Rd8 {[%clk 0:00:46.3]} 34...
Qe4 {[%clk 0:00:02.8]} 35. Rxf8+ {[%clk 0:00:44.6]} 35... Kxf8 {[%clk
0:00:03.7]} 36. Rf2+ {[%clk 0:00:44.4]} 36... Rxf2 {[%clk 0:00:03]} 37. Qxf2+
{[%clk 0:00:44.7]} 37... Kg8 {[%clk 0:00:03.9]} 38. Qxc5 {[%clk 0:00:39.1]}
38... Qg2+ {[%clk 0:00:02.1]} 39. Ka3 {[%clk 0:00:38]} 39... Qxh2 {[%clk
0:00:03]} 40. g6 {[%clk 0:00:33.9]} 40... Qf2 {[%clk 0:00:01.6]} 41. Qxf2 {[%clk
0:00:33.1]} 1-0

[Event "*** Titled Tuesday Blitz"]
[Site "Chess.com"]
[Date "2020.11.10"]
[Round "6"]
[White "AlexandraBotez"]
[Black "orestn"]
[Result "0-1"]
[WhiteElo "2097"]
[BlackElo "2250"]
[TimeControl "180+1"]
[EndTime "11:09:46 PST"]
[Termination "orestn won on time"]

1. d4 {[%clk 0:03:00.9]} 1... d5 {[%clk 0:02:57.9]} 2. Bf4 {[%clk 0:02:55.7]}
2... e6 {[%clk 0:02:57]} 3. Nf3 {[%clk 0:02:53.4]} 3... f5 {[%clk 0:02:57.2]} 4.
e3 {[%clk 0:02:51.4]} 4... Nf6 {[%clk 0:02:56.8]} 5. Be2 {[%clk 0:02:43.3]} 5...
c5 {[%clk 0:02:56.2]} 6. Nbd2 {[%clk 0:02:36.9]} 6... Nc6 {[%clk 0:02:55.5]} 7.
O-O {[%clk 0:02:33.5]} 7... Bd7 {[%clk 0:02:54.6]} 8. c3 {[%clk 0:02:18.7]} 8...
Be7 {[%clk 0:02:51.5]} 9. Ne5 {[%clk 0:02:16.5]} 9... O-O {[%clk 0:02:48.9]} 10.
Nxd7 {[%clk 0:02:07.2]} 10... Qxd7 {[%clk 0:02:47.3]} 11. Nf3 {[%clk 0:02:07.8]}
11... c4 {[%clk 0:02:42.3]} 12. Ne5 {[%clk 0:02:06.6]} 12... Nxe5 {[%clk
0:02:37.8]} 13. Bxe5 {[%clk 0:02:06.4]} 13... b5 {[%clk 0:02:29.5]} 14. Qc2
{[%clk 0:01:39]} 14... a5 {[%clk 0:02:25.6]} 15. Rfb1 {[%clk 0:01:29.5]} 15...
Bd6 {[%clk 0:02:21.3]} 16. Bxd6 {[%clk 0:00:58.6]} 16... Qxd6 {[%clk 0:02:20.4]}
17. f4 {[%clk 0:00:56.9]} 17... Rfc8 {[%clk 0:02:13.7]} 18. a3 {[%clk
0:00:47.5]} 18... b4 {[%clk 0:02:02.6]} 19. Bf3 {[%clk 0:00:42.6]} 19... Rcb8
{[%clk 0:01:43.1]} 20. Qc1 {[%clk 0:00:34.5]} 20... bxa3 {[%clk 0:01:33.7]} 21.
Rxa3 {[%clk 0:00:33.1]} 21... Rb3 {[%clk 0:01:30.2]} 22. Ra2 {[%clk 0:00:31.7]}
22... Qb6 {[%clk 0:01:27.1]} 23. Kf2 {[%clk 0:00:26.2]} 23... Rb8 {[%clk
0:01:21.6]} 24. Bd1 {[%clk 0:00:23]} 24... Ne4+ {[%clk 0:01:15.2]} 25. Kg1
{[%clk 0:00:21.9]} 25... Rxc3 {[%clk 0:01:13.4]} 26. Bc2 {[%clk 0:00:18.3]}
26... Rb3 {[%clk 0:01:02.4]} 27. Bxb3 {[%clk 0:00:14.9]} 27... cxb3 {[%clk
0:00:54.4]} 28. Ra3 {[%clk 0:00:12.6]} 28... Qb5 {[%clk 0:00:48.7]} 29. Qe1
{[%clk 0:00:09]} 29... a4 {[%clk 0:00:47.6]} 30. Rc1 {[%clk 0:00:09.2]} 30...
Qb4 {[%clk 0:00:43.2]} 31. Qxb4 {[%clk 0:00:08.2]} 31... Rxb4 {[%clk 0:00:43.4]}
32. Rc7 {[%clk 0:00:07.2]} 32... Nd2 {[%clk 0:00:38.3]} 33. Kf2 {[%clk
0:00:06.4]} 33... Nc4 {[%clk 0:00:38.6]} 34. Rc8+ {[%clk 0:00:03.4]} 34... Kf7
{[%clk 0:00:37.7]} 35. Rc7+ {[%clk 0:00:04.3]} 35... Kf6 {[%clk 0:00:37.3]} 36.
Ra1 {[%clk 0:00:03.7]} 36... Nxb2 {[%clk 0:00:36.1]} 37. h3 {[%clk 0:00:04.2]}
37... Nc4 {[%clk 0:00:35.5]} 38. g4 {[%clk 0:00:04.2]} 38... fxg4 {[%clk
0:00:32.5]} 39. hxg4 {[%clk 0:00:04.3]} 39... b2 {[%clk 0:00:32.9]} 40. g5+
{[%clk 0:00:03.7]} 40... Kg6 {[%clk 0:00:32.9]} 41. Rb1 {[%clk 0:00:03.2]} 41...
a3 {[%clk 0:00:32.4]} 42. e4 {[%clk 0:00:02.4]} 42... dxe4 {[%clk 0:00:30.8]}
43. Rc6 {[%clk 0:00:02.4]} 43... a2 {[%clk 0:00:29.6]} 0-1

[Event "*** Titled Tuesday Blitz"]
[Site "Chess.com"]
[Date "2020.11.10"]
[Round "6"]
[White "GM_LOADING"]
[Black "IwkooO"]
[Result "0-1"]
[WhiteElo "2463"]
[BlackElo "2626"]
[TimeControl "180+1"]
[EndTime "11:09:50 PST"]
[Termination "IwkooO won on time"]

1. Nf3 {[%clk 0:03:00.9]} 1... c5 {[%clk 0:03:00]} 2. g3 {[%clk 0:03:00.5]} 2...
Nc6 {[%clk 0:03:00.2]} 3. Bg2 {[%clk 0:03:00.2]} 3... g6 {[%clk 0:03:01.1]} 4.
O-O {[%clk 0:02:59.1]} 4... Bg7 {[%clk 0:03:01.7]} 5. c4 {[%clk 0:02:59.1]} 5...
e6 {[%clk 0:02:58.5]} 6. Nc3 {[%clk 0:02:59]} 6... d6 {[%clk 0:02:58.6]} 7. Rb1
{[%clk 0:02:55.7]} 7... Nge7 {[%clk 0:02:58.6]} 8. a3 {[%clk 0:02:55.6]} 8...
O-O {[%clk 0:02:59]} 9. b4 {[%clk 0:02:52.2]} 9... b6 {[%clk 0:02:57]} 10. Qb3
{[%clk 0:02:07.7]} 10... Bb7 {[%clk 0:02:54.4]} 11. Bb2 {[%clk 0:02:04.2]} 11...
Rc8 {[%clk 0:02:44.2]} 12. d3 {[%clk 0:01:59.1]} 12... cxb4 {[%clk 0:02:19]} 13.
axb4 {[%clk 0:01:48.7]} 13... a5 {[%clk 0:02:19.9]} 14. bxa5 {[%clk 0:01:41]}
14... Nxa5 {[%clk 0:02:19]} 15. Qb4 {[%clk 0:01:01.8]} 15... d5 {[%clk
0:02:18.2]} 16. Na4 {[%clk 0:00:25.5]} 16... Bxb2 {[%clk 0:01:54.9]} 17. Nxb2
{[%clk 0:00:25]} 17... dxc4 {[%clk 0:01:49.5]} 18. Nxc4 {[%clk 0:00:24.5]} 18...
Nxc4 {[%clk 0:01:49.4]} 19. dxc4 {[%clk 0:00:25.4]} 19... Ba6 {[%clk 0:01:46.4]}
20. Rfd1 {[%clk 0:00:20.8]} 20... Qc7 {[%clk 0:01:45.2]} 21. Qxb6 {[%clk
0:00:19.8]} 21... Bxc4 {[%clk 0:01:44.8]} 22. Qxc7 {[%clk 0:00:15.5]} 22... Rxc7
{[%clk 0:01:45.7]} 23. Rdc1 {[%clk 0:00:15.2]} 23... Rfc8 {[%clk 0:01:44.5]} 24.
e3 {[%clk 0:00:14.1]} 24... Nd5 {[%clk 0:01:38.8]} 25. Ne5 {[%clk 0:00:10.6]}
25... Be2 {[%clk 0:01:33.1]} 26. Rxc7 {[%clk 0:00:09.1]} 26... Rxc7 {[%clk
0:01:34]} 27. Bxd5 {[%clk 0:00:08.9]} 27... exd5 {[%clk 0:01:34]} 28. Re1 {[%clk
0:00:08.8]} 28... Bc4 {[%clk 0:01:21.3]} 29. Rc1 {[%clk 0:00:07.7]} 29... f6
{[%clk 0:01:21.4]} 30. Nf3 {[%clk 0:00:06.5]} 30... Kf7 {[%clk 0:01:21.1]} 31.
Nd4 {[%clk 0:00:06.1]} 31... Rb7 {[%clk 0:01:21.1]} 32. g4 {[%clk 0:00:04.9]}
32... h5 {[%clk 0:01:17.7]} 33. gxh5 {[%clk 0:00:04.6]} 33... gxh5 {[%clk
0:01:18.6]} 34. Kg2 {[%clk 0:00:05.2]} 34... Kg6 {[%clk 0:01:11.6]} 35. Kg3
{[%clk 0:00:05.6]} 35... Bd3 {[%clk 0:01:07.2]} 36. Rc8 {[%clk 0:00:04.3]} 36...
Rb1 {[%clk 0:01:03.5]} 37. Kf4 {[%clk 0:00:02]} 37... Rh1 {[%clk 0:00:59.1]} 38.
Rg8+ {[%clk 0:00:02.5]} 38... Kf7 {[%clk 0:00:58.8]} 39. Rg2 {[%clk 0:00:03.1]}
39... Bf1 {[%clk 0:00:55.7]} 40. Rg3 {[%clk 0:00:02]} 40... Rxh2 {[%clk
0:00:55.5]} 41. f3 {[%clk 0:00:02.8]} 41... Rh4+ {[%clk 0:00:49.4]} 42. Kf5
{[%clk 0:00:02.3]} 42... Bd3+ {[%clk 0:00:37.2]} 43. e4 {[%clk 0:00:02.7]} 43...
dxe4 {[%clk 0:00:37.7]} 0-1

[Event "*** Titled Tuesday Blitz"]
[Site "Chess.com"]
[Date "2020.11.10"]
[Round "6"]
[White "Mr_Sinigami"]
[Black "ChronicUnhappiness"]
[Result "1-0"]
[WhiteElo "2533"]
[BlackElo "2329"]
[TimeControl "180+1"]
[EndTime "11:09:50 PST"]
[Termination "Mr_Sinigami won on time"]

1. d4 {[%clk 0:03:00.9]} 1... d5 {[%clk 0:02:59.4]} 2. Nf3 {[%clk 0:03:01.2]}
2... Nf6 {[%clk 0:02:59.1]} 3. Bf4 {[%clk 0:03:01.7]} 3... Bf5 {[%clk
0:02:58.3]} 4. e3 {[%clk 0:02:59.3]} 4... e6 {[%clk 0:02:56.1]} 5. c4 {[%clk
0:02:59]} 5... Bb4+ {[%clk 0:02:52.5]} 6. Nc3 {[%clk 0:02:58.3]} 6... c5 {[%clk
0:02:47.8]} 7. Be2 {[%clk 0:02:48.5]} 7... dxc4 {[%clk 0:02:37.9]} 8. dxc5
{[%clk 0:02:43.1]} 8... Qxd1+ {[%clk 0:02:25.3]} 9. Rxd1 {[%clk 0:02:40.5]} 9...
Ne4 {[%clk 0:01:59.7]} 10. Rc1 {[%clk 0:02:05.7]} 10... Nxc5 {[%clk 0:01:41.8]}
11. Bxc4 {[%clk 0:01:51.1]} 11... Bd3 {[%clk 0:01:33.1]} 12. Bb3 {[%clk
0:01:36.4]} 12... Nc6 {[%clk 0:01:15]} 13. Ne5 {[%clk 0:01:22.3]} 13... Nxe5
{[%clk 0:00:37.4]} 14. Bxe5 {[%clk 0:01:20.2]} 14... O-O {[%clk 0:00:37.4]} 15.
f3 {[%clk 0:01:14.5]} 15... Rfd8 {[%clk 0:00:35.7]} 16. Bd4 {[%clk 0:01:02.1]}
16... Nxb3 {[%clk 0:00:29.2]} 17. axb3 {[%clk 0:01:00.8]} 17... f6 {[%clk
0:00:29.6]} 18. f4 {[%clk 0:00:56.1]} 18... b6 {[%clk 0:00:25.4]} 19. Kf2 {[%clk
0:00:55.5]} 19... Rac8 {[%clk 0:00:21.7]} 20. Rhd1 {[%clk 0:00:54.3]} 20... Bxc3
{[%clk 0:00:20.2]} 21. bxc3 {[%clk 0:00:51.4]} 21... Be4 {[%clk 0:00:21.1]} 22.
c4 {[%clk 0:00:44.6]} 22... Rd7 {[%clk 0:00:20.4]} 23. Ra1 {[%clk 0:00:34.8]}
23... Kf7 {[%clk 0:00:20.3]} 24. Rdc1 {[%clk 0:00:30.4]} 24... Rcc7 {[%clk
0:00:18.9]} 25. g4 {[%clk 0:00:28]} 25... h6 {[%clk 0:00:17.3]} 26. h4 {[%clk
0:00:26.6]} 26... Bc6 {[%clk 0:00:12.5]} 27. Ra2 {[%clk 0:00:26.1]} 27... Be4
{[%clk 0:00:12.3]} 28. Kg3 {[%clk 0:00:25.8]} 28... Rb7 {[%clk 0:00:12]} 29. g5
{[%clk 0:00:24.8]} 29... hxg5 {[%clk 0:00:06.7]} 30. hxg5 {[%clk 0:00:24.8]}
30... Rd8 {[%clk 0:00:06.6]} 31. Rh2 {[%clk 0:00:23.4]} 31... Rbb8 {[%clk
0:00:04.4]} 32. Rd1 {[%clk 0:00:20.3]} 32... Rh8 {[%clk 0:00:03.3]} 33. Rdd2
{[%clk 0:00:20]} 33... Rxh2 {[%clk 0:00:02.1]} 34. Rxh2 {[%clk 0:00:19.8]} 34...
a5 {[%clk 0:00:02.2]} 35. gxf6 {[%clk 0:00:18.6]} 35... gxf6 {[%clk 0:00:02]}
36. Rh6 {[%clk 0:00:19]} 1-0

[Event "*** Titled Tuesday Blitz"]
[Site "Chess.com"]
[Date "2020.11.10"]
[Round "6"]
[White "sboshaon21"]
[Black "PattyCastillo"]
[Result "0-1"]
[WhiteElo "2044"]
[BlackElo "1973"]
[TimeControl "180+1"]
[EndTime "11:09:50 PST"]
[Termination "PattyCastillo won on time"]

1. e4 {[%clk 0:03:00.9]} 1... c5 {[%clk 0:02:59.4]} 2. Nf3 {[%clk 0:03:01.4]}
2... d6 {[%clk 0:02:59.2]} 3. d4 {[%clk 0:03:01.9]} 3... cxd4 {[%clk 0:02:59.9]}
4. Nxd4 {[%clk 0:03:02.5]} 4... Nf6 {[%clk 0:03:00.5]} 5. Nc3 {[%clk 0:03:02.6]}
5... a6 {[%clk 0:03:01]} 6. Be2 {[%clk 0:03:02.4]} 6... e5 {[%clk 0:03:00.8]} 7.
Nb3 {[%clk 0:03:01.3]} 7... Be7 {[%clk 0:03:00.1]} 8. Be3 {[%clk 0:03:00.2]}
8... Be6 {[%clk 0:02:58.1]} 9. O-O {[%clk 0:03:00.3]} 9... Nbd7 {[%clk
0:02:58.4]} 10. f4 {[%clk 0:02:58.9]} 10... Rc8 {[%clk 0:02:53.5]} 11. f5 {[%clk
0:02:57.2]} 11... Bc4 {[%clk 0:02:52.8]} 12. Nd2 {[%clk 0:02:50.4]} 12... Bxe2
{[%clk 0:02:50]} 13. Qxe2 {[%clk 0:02:51.3]} 13... O-O {[%clk 0:02:49.8]} 14. g4
{[%clk 0:02:45]} 14... Nc5 {[%clk 0:02:47.5]} 15. g5 {[%clk 0:02:36.9]} 15...
Nfd7 {[%clk 0:02:45.8]} 16. Qg4 {[%clk 0:02:32.8]} 16... f6 {[%clk 0:02:30]} 17.
g6 {[%clk 0:02:19.3]} 17... h6 {[%clk 0:02:20.1]} 18. Qh5 {[%clk 0:02:18.8]}
18... Re8 {[%clk 0:02:02.6]} 19. Rf3 {[%clk 0:02:10.5]} 19... Nf8 {[%clk
0:01:49.1]} 20. Bxh6 {[%clk 0:02:06]} 20... gxh6 {[%clk 0:01:47.9]} 21. Qxh6
{[%clk 0:02:06.3]} 21... Qb6 {[%clk 0:01:21.2]} 22. Nd5 {[%clk 0:01:45.4]} 22...
Qxb2 {[%clk 0:01:19.5]} 23. Nxe7+ {[%clk 0:01:44.3]} 23... Rxe7 {[%clk
0:01:19.2]} 24. Rh3 {[%clk 0:00:54.6]} 24... Qxa1+ {[%clk 0:01:16.1]} 25. Kg2
{[%clk 0:00:53.5]} 25... Nh7 {[%clk 0:00:53.3]} 26. gxh7+ {[%clk 0:00:51.2]}
26... Kh8 {[%clk 0:00:53]} 27. Qxf6+ {[%clk 0:00:45.7]} 27... Rg7+ {[%clk
0:00:52.2]} 28. Rg3 {[%clk 0:00:46.2]} 28... Rc7 {[%clk 0:00:23.7]} 29. Nf1
{[%clk 0:00:11.6]} 29... Qe1 {[%clk 0:00:14.6]} 30. Kg1 {[%clk 0:00:10.3]} 30...
Nxe4 {[%clk 0:00:12.2]} 31. Qf8+ {[%clk 0:00:06.8]} 31... Kxh7 {[%clk 0:00:12]}
32. f6 {[%clk 0:00:01.9]} 32... Qf2+ {[%clk 0:00:10.6]} 33. Kh1 {[%clk
0:00:01.1]} 33... Qxf1+ {[%clk 0:00:09.8]} 0-1

[Event "*** Titled Tuesday Blitz"]
[Site "Chess.com"]
[Date "2020.11.10"]
[Round "6"]
[White "yourstrulyme"]
[Black "FMOlexandrProhorov"]
[Result "0-1"]
[WhiteElo "2391"]
[BlackElo "2147"]
[TimeControl "180+1"]
[EndTime "11:09:53 PST"]
[Termination "FMOlexandrProhorov won on time"]

1. d4 {[%clk 0:03:00.9]} 1... g6 {[%clk 0:02:59.8]} 2. Nf3 {[%clk 0:03:01.8]}
2... Bg7 {[%clk 0:02:59.7]} 3. e4 {[%clk 0:03:01.7]} 3... c5 {[%clk 0:02:49.8]}
4. dxc5 {[%clk 0:02:59.1]} 4... Qa5+ {[%clk 0:02:47.6]} 5. Bd2 {[%clk
0:02:59.1]} 5... Qxc5 {[%clk 0:02:47.6]} 6. Bc3 {[%clk 0:02:59.6]} 6... Nf6
{[%clk 0:02:45.8]} 7. Nbd2 {[%clk 0:02:51.2]} 7... O-O {[%clk 0:02:45.3]} 8. Bd3
{[%clk 0:01:56.1]} 8... d6 {[%clk 0:02:35.9]} 9. O-O {[%clk 0:01:55.7]} 9... Nc6
{[%clk 0:02:28.9]} 10. Re1 {[%clk 0:01:55.6]} 10... Qb6 {[%clk 0:02:18.3]} 11.
h3 {[%clk 0:01:52.8]} 11... Bd7 {[%clk 0:02:08.5]} 12. Nc4 {[%clk 0:01:51.9]}
12... Qc7 {[%clk 0:02:07.8]} 13. e5 {[%clk 0:01:51.9]} 13... dxe5 {[%clk
0:02:05.7]} 14. Nfxe5 {[%clk 0:01:52.1]} 14... Be6 {[%clk 0:01:50.5]} 15. Qf3
{[%clk 0:01:37.2]} 15... Nd5 {[%clk 0:01:26.9]} 16. Nxc6 {[%clk 0:01:33.5]}
16... Nxc3 {[%clk 0:01:19.8]} 17. Nxe7+ {[%clk 0:01:13.3]} 17... Qxe7 {[%clk
0:01:18.5]} 18. bxc3 {[%clk 0:01:14.2]} 18... Bxc3 {[%clk 0:01:11.8]} 19. Ne5
{[%clk 0:00:56.1]} 19... Bxa1 {[%clk 0:01:08.6]} 20. Rxa1 {[%clk 0:00:55.4]}
20... Qg5 {[%clk 0:00:51.8]} 21. Re1 {[%clk 0:00:52.7]} 21... Rad8 {[%clk
0:00:44.2]} 22. Ng4 {[%clk 0:00:25.4]} 22... Kg7 {[%clk 0:00:26.7]} 23. Qxb7
{[%clk 0:00:20.8]} 23... Bd5 {[%clk 0:00:20.6]} 24. Qxa7 {[%clk 0:00:15.1]}
24... Rfe8 {[%clk 0:00:18.4]} 25. Rxe8 {[%clk 0:00:10]} 25... Rxe8 {[%clk
0:00:18.1]} 26. Qd4+ {[%clk 0:00:10.3]} 26... f6 {[%clk 0:00:11.9]} 27. f4
{[%clk 0:00:09.8]} 27... Qh4 {[%clk 0:00:03.6]} 28. Qxd5 {[%clk 0:00:09.4]}
28... Qe1+ {[%clk 0:00:02.8]} 29. Kh2 {[%clk 0:00:08.8]} 29... h5 {[%clk
0:00:02]} 30. Qb7+ {[%clk 0:00:01.7]} 30... Re7 {[%clk 0:00:02]} 0-1

[Event "*** Titled Tuesday Blitz"]
[Site "Chess.com"]
[Date "2020.11.10"]
[Round "6"]
[White "MVM2008"]
[Black "pavelalexandru07"]
[Result "1-0"]
[WhiteElo "2189"]
[BlackElo "2280"]
[TimeControl "180+1"]
[EndTime "11:09:53 PST"]
[Termination "MVM2008 won by resignation"]

1. e4 {[%clk 0:03:00.9]} 1... c5 {[%clk 0:02:59.6]} 2. Nf3 {[%clk 0:03:00.9]}
2... d6 {[%clk 0:02:59.5]} 3. d4 {[%clk 0:03:01.5]} 3... cxd4 {[%clk 0:02:59.7]}
4. Nxd4 {[%clk 0:03:02.4]} 4... Nf6 {[%clk 0:02:59.5]} 5. Nc3 {[%clk 0:03:02.8]}
5... a6 {[%clk 0:02:59.8]} 6. Bc4 {[%clk 0:03:03.2]} 6... e6 {[%clk 0:02:59.5]}
7. Be3 {[%clk 0:03:02.3]} 7... b5 {[%clk 0:02:58.3]} 8. Bb3 {[%clk 0:03:02.4]}
8... Nbd7 {[%clk 0:02:57.3]} 9. f3 {[%clk 0:02:59.7]} 9... Bb7 {[%clk
0:02:56.7]} 10. a3 {[%clk 0:02:59.1]} 10... Nc5 {[%clk 0:02:56.6]} 11. Ba2
{[%clk 0:02:57.8]} 11... Qc7 {[%clk 0:02:51.4]} 12. O-O {[%clk 0:02:53.5]} 12...
Rc8 {[%clk 0:02:39.9]} 13. b4 {[%clk 0:02:30.5]} 13... Ncd7 {[%clk 0:02:16.9]}
14. Nce2 {[%clk 0:02:19.4]} 14... Ne5 {[%clk 0:02:09.9]} 15. Bg5 {[%clk
0:01:39.5]} 15... Be7 {[%clk 0:01:56.2]} 16. Nxe6 {[%clk 0:01:25.9]} 16... fxe6
{[%clk 0:01:52.3]} 17. Bxe6 {[%clk 0:01:26.8]} 17... Rd8 {[%clk 0:01:29.9]} 18.
Nd4 {[%clk 0:01:21.3]} 18... Nf7 {[%clk 0:01:19.5]} 19. Be3 {[%clk 0:01:08.5]}
19... d5 {[%clk 0:01:06.3]} 20. Nf5 {[%clk 0:01:03.2]} 20... O-O {[%clk
0:00:55.5]} 21. Qe1 {[%clk 0:00:51.1]} 21... dxe4 {[%clk 0:00:47.8]} 22. Qh4
{[%clk 0:00:49.7]} 22... Nd5 {[%clk 0:00:26]} 23. Nh6+ {[%clk 0:00:25.1]} 23...
Kh8 {[%clk 0:00:23]} 24. Nxf7+ {[%clk 0:00:17.4]} 24... Rxf7 {[%clk 0:00:22.7]}
25. Qxe4 {[%clk 0:00:14.7]} 25... Nf6 {[%clk 0:00:19.2]} 26. Qf5 {[%clk
0:00:11.6]} 26... Rff8 {[%clk 0:00:18.7]} 27. Rad1 {[%clk 0:00:08.9]} 27... Rxd1
{[%clk 0:00:18]} 28. Rxd1 {[%clk 0:00:09.8]} 28... Rd8 {[%clk 0:00:18.3]} 29.
Rxd8+ {[%clk 0:00:07.6]} 29... Qxd8 {[%clk 0:00:17.8]} 30. Bf7 {[%clk
0:00:02.6]} 30... Qc7 {[%clk 0:00:14.9]} 31. Bf4 {[%clk 0:00:02.6]} 31... Qb6+
{[%clk 0:00:09.9]} 32. Kf1 {[%clk 0:00:03]} 32... Qd6 {[%clk 0:00:09.5]} 33.
Bxd6 {[%clk 0:00:02.5]} 33... Bxd6 {[%clk 0:00:09.3]} 34. Qd3 {[%clk 0:00:02.7]}
34... Bf8 {[%clk 0:00:08.7]} 35. Qd8 {[%clk 0:00:02.6]} 1-0